[Event "Titled Tuesday Blitz July 18 Late 2023"]
[White "Zenin, Dmitry"]
[Black "Dragomirescu, Robin-Alexandru"]
[WhiteFideId "4127897"]
[BlackFideId "1213849"]
[WhiteElo "2418"]
[BlackElo "2582"]
[Result "0-1"]
[Round "3"]
[TimeControl "180+2"]
[Date "2023.07.18"]
[WhiteClock "0:01:02"]
[BlackClock "0:01:30"]
[Board "95"]

1. d4 {[%clk 0:03:00]}  Nf6 {[%clk 0:02:54]} 2. c4 {[%clk 0:03:00]}  e6 {[%clk 0:02:55]} 3. Nc3 {[%clk 0:03:00]}  Bb4 {[%clk 0:02:54]} 4. Qc2 {[%clk 0:03:00]}  O-O {[%clk 0:02:51]} 5. Nf3 {[%clk 0:03:00]}  d5 {[%clk 0:02:47]} 6. cxd5 {[%clk 0:03:00]}  exd5 {[%clk 0:02:45]} 7. Bf4 {[%clk 0:02:59]}  c6 {[%clk 0:02:34]} 8. e3 {[%clk 0:02:59]}  Re8 {[%clk 0:02:22]} 9. Bd3 {[%clk 0:02:58]}  h6 {[%clk 0:02:12]} 10. h3 {[%clk 0:02:52]}  a5 {[%clk 0:02:13]} 11. O-O {[%clk 0:02:49]}  Bd6 {[%clk 0:02:11]} 12. Bxd6 {[%clk 0:02:40]}  Qxd6 {[%clk 0:02:11]} 13. Ne5 {[%clk 0:02:39]}  Nbd7 {[%clk 0:02:07]} 14. f4 {[%clk 0:02:38]}  b6 {[%clk 0:02:02]} 15. Rac1 {[%clk 0:01:59]}  Bb7 {[%clk 0:02:01]} 16. a4 {[%clk 0:01:47]}  Nb8 {[%clk 0:01:47]} 17. Na2 {[%clk 0:01:39]}  Na6 {[%clk 0:01:40]} 18. Qb3 {[%clk 0:01:34]}  Nb4 {[%clk 0:01:37]} 19. Nxb4 {[%clk 0:01:31]}  axb4 {[%clk 0:01:38]} 20. Rc2 {[%clk 0:01:19]}  c5 {[%clk 0:01:35]} 21. Bb5 {[%clk 0:01:02]}  c4 {[%clk 0:01:30]} 0-1


[Site "https://www.chess.com"]

[Event "Titled Tuesday Blitz July 18 Late 2023"]
[White "Mazurkiewicz, Michal"]
[Black "Kretchetov, Alexandre"]
[WhiteFideId "1124943"]
[BlackFideId "4124588"]
[WhiteElo "2418"]
[BlackElo "2574"]
[Result "0-1"]
[Round "3"]
[TimeControl "180+2"]
[Date "2023.07.18"]
[WhiteClock "0:00:00"]
[BlackClock "0:01:52"]
[Board "96"]

1. e4 {[%clk 0:02:55]}  e5 {[%clk 0:02:55]} 2. Nf3 {[%clk 0:02:55]}  Nc6 {[%clk 0:02:54]} 3. Bb5 {[%clk 0:02:55]}  g6 {[%clk 0:02:54]} 4. O-O {[%clk 0:02:53]}  Bg7 {[%clk 0:02:54]} 5. c3 {[%clk 0:02:53]}  a6 {[%clk 0:02:53]} 6. Ba4 {[%clk 0:02:52]}  d6 {[%clk 0:02:53]} 7. d4 {[%clk 0:02:51]}  Bd7 {[%clk 0:02:53]} 8. Re1 {[%clk 0:02:44]}  Nf6 {[%clk 0:02:52]} 9. Nbd2 {[%clk 0:02:23]}  O-O {[%clk 0:02:51]} 10. Bxc6 {[%clk 0:02:09]}  Bxc6 {[%clk 0:02:51]} 11. dxe5 {[%clk 0:02:09]}  dxe5 {[%clk 0:02:47]} 12. Nxe5 {[%clk 0:02:09]}  Bxe4 {[%clk 0:02:44]} 13. Nxe4 {[%clk 0:00:44]}  Qxd1 {[%clk 0:02:36]} 14. Nxf6+ {[%clk 0:00:37]}  Bxf6 {[%clk 0:02:36]} 15. Rxd1 {[%clk 0:00:37]}  Bxe5 {[%clk 0:02:36]} 16. Bh6 {[%clk 0:00:36]}  Rfd8 {[%clk 0:02:35]} 17. Kf1 {[%clk 0:00:34]}  f6 {[%clk 0:02:31]} 18. Ke2 {[%clk 0:00:34]}  Kf7 {[%clk 0:02:28]} 19. Be3 {[%clk 0:00:31]}  Ke6 {[%clk 0:02:24]} 20. h3 {[%clk 0:00:16]}  f5 {[%clk 0:02:23]} 21. Kf3 {[%clk 0:00:13]}  a5 {[%clk 0:02:17]} 22. Re1 {[%clk 0:00:13]}  Kf7 {[%clk 0:02:15]} 23. Bg5 {[%clk 0:00:11]}  Bf6 {[%clk 0:02:15]} 24. Bxf6 {[%clk 0:00:10]}  Kxf6 {[%clk 0:02:15]} 25. Rad1 {[%clk 0:00:11]}  a4 {[%clk 0:02:13]} 26. a3 {[%clk 0:00:12]}  Kf7 {[%clk 0:02:11]} 27. Kf4 {[%clk 0:00:11]}  Rxd1 {[%clk 0:02:08]} 28. Rxd1 {[%clk 0:00:12]}  Ke6 {[%clk 0:02:09]} 29. Re1+ {[%clk 0:00:11]}  Kf6 {[%clk 0:02:09]} 30. Rd1 {[%clk 0:00:11]}  g5+ {[%clk 0:02:09]} 31. Kf3 {[%clk 0:00:10]}  Ra6 {[%clk 0:02:04]} 32. Rd7 {[%clk 0:00:10]}  Rb6 {[%clk 0:02:04]} 33. Rxh7 {[%clk 0:00:08]}  Rxb2 {[%clk 0:02:04]} 34. Rxc7 {[%clk 0:00:09]}  Rb3 {[%clk 0:02:04]} 35. Ke2 {[%clk 0:00:08]}  b5 {[%clk 0:02:03]} 36. Rc5 {[%clk 0:00:07]}  Rxa3 {[%clk 0:01:59]} 37. Rxb5 {[%clk 0:00:07]}  Rxc3 {[%clk 0:01:59]} 38. Ra5 {[%clk 0:00:08]}  Ra3 {[%clk 0:01:59]} 39. g3 {[%clk 0:00:08]}  Ra2+ {[%clk 0:01:58]} 40. Kf1 {[%clk 0:00:08]}  a3 {[%clk 0:01:59]} 41. Kg2 {[%clk 0:00:07]}  Ra1 {[%clk 0:01:59]} 42. h4 {[%clk 0:00:07]}  gxh4 {[%clk 0:01:56]} 43. gxh4 {[%clk 0:00:07]}  Kg6 {[%clk 0:01:56]} 44. h5+ {[%clk 0:00:05]}  Kg5 {[%clk 0:01:56]} 45. h6 {[%clk 0:00:05]}  Kxh6 {[%clk 0:01:56]} 46. Rxf5 {[%clk 0:00:05]}  Kg6 {[%clk 0:01:55]} 47. Ra5 {[%clk 0:00:05]}  Kf6 {[%clk 0:01:55]} 48. Kf3 {[%clk 0:00:04]}  Ke6 {[%clk 0:01:54]} 49. Ke2 {[%clk 0:00:04]}  a2 {[%clk 0:01:53]} 50. Kd2 {[%clk 0:00:00]}  Rf1 {[%clk 0:01:52]} 0-1


[Site "https://www.chess.com"]

[Event "Titled Tuesday Blitz July 18 Late 2023"]
[White "Stachanczyk, Jacek"]
[Black "Vovk, Orest"]
[WhiteFideId "1116657"]
[BlackFideId "14113490"]
[WhiteElo "2417"]
[BlackElo "2573"]
[Result "1-0"]
[Round "3"]
[TimeControl "180+2"]
[Date "2023.07.18"]
[WhiteClock "0:00:12"]
[BlackClock "0:00:02"]
[Board "97"]

1. e4 {[%clk 0:03:00]}  g5 {[%clk 0:02:50]} 2. d4 {[%clk 0:03:00]}  g4 {[%clk 0:02:49]} 3. h3 {[%clk 0:02:57]}  d5 {[%clk 0:02:48]} 4. exd5 {[%clk 0:02:54]}  Qxd5 {[%clk 0:02:46]} 5. Nc3 {[%clk 0:02:54]}  Qa5 {[%clk 0:02:45]} 6. hxg4 {[%clk 0:02:52]}  Bg7 {[%clk 0:02:43]} 7. Bc4 {[%clk 0:02:43]}  Nc6 {[%clk 0:02:28]} 8. Bd2 {[%clk 0:01:50]}  Nxd4 {[%clk 0:02:19]} 9. Nb5 {[%clk 0:01:25]}  Qb6 {[%clk 0:02:13]} 10. Be3 {[%clk 0:01:22]}  c5 {[%clk 0:02:06]} 11. Bxd4 {[%clk 0:01:03]}  cxd4 {[%clk 0:02:06]} 12. Qf3 {[%clk 0:01:04]}  Be6 {[%clk 0:01:38]} 13. Bxe6 {[%clk 0:00:58]}  Qxe6+ {[%clk 0:01:38]} 14. Ne2 {[%clk 0:00:57]}  Qd7 {[%clk 0:01:35]} 15. Nbxd4 {[%clk 0:00:43]}  Bxd4 {[%clk 0:01:34]} 16. Rd1 {[%clk 0:00:43]}  Bxf2+ {[%clk 0:01:30]} 17. Qxf2 {[%clk 0:00:41]}  Qxg4 {[%clk 0:01:20]} 18. O-O {[%clk 0:00:41]}  Nf6 {[%clk 0:01:17]} 19. Rd4 {[%clk 0:00:40]}  Qg5 {[%clk 0:01:11]} 20. Qf3 {[%clk 0:00:35]}  O-O {[%clk 0:01:06]} 21. c3 {[%clk 0:00:29]}  Rad8 {[%clk 0:01:03]} 22. Rf4 {[%clk 0:00:29]}  Rd2 {[%clk 0:00:56]} 23. Qe3 {[%clk 0:00:25]}  Rd7 {[%clk 0:00:33]} 24. R1f3 {[%clk 0:00:25]}  Kh8 {[%clk 0:00:27]} 25. Rg3 {[%clk 0:00:24]}  Qd5 {[%clk 0:00:27]} 26. Rxf6 {[%clk 0:00:14]}  exf6 {[%clk 0:00:21]} 27. Qh6 {[%clk 0:00:13]}  Qg5 {[%clk 0:00:02]} 28. Rxg5 {[%clk 0:00:12]}  Rd1+ {[%clk 0:00:02]} 29. Kf2 {[%clk 0:00:12]}  Re8 {[%clk 0:00:02]} 30. Qxf6# {[%clk 0:00:12]} 1-0


[Site "https://www.chess.com"]

[Event "Titled Tuesday Blitz July 18 Late 2023"]
[White "Baches Garcia, Guillermo"]
[Black "Bartel, Michal"]
[WhiteFideId "2209764"]
[BlackFideId "1119257"]
[WhiteElo "2416"]
[BlackElo "2571"]
[Result "0-1"]
[Round "3"]
[TimeControl "180+2"]
[Date "2023.07.18"]
[WhiteClock "0:00:00"]
[BlackClock "0:00:57"]
[Board "98"]

1. e4 {[%clk 0:03:00]}  e5 {[%clk 0:03:00]} 2. Nf3 {[%clk 0:03:01]}  Nc6 {[%clk 0:03:00]} 3. Nc3 {[%clk 0:03:01]}  g6 {[%clk 0:03:00]} 4. d4 {[%clk 0:03:02]}  exd4 {[%clk 0:03:01]} 5. Nxd4 {[%clk 0:03:02]}  Bg7 {[%clk 0:03:02]} 6. Be3 {[%clk 0:03:01]}  Nf6 {[%clk 0:03:01]} 7. f3 {[%clk 0:02:58]}  O-O {[%clk 0:03:01]} 8. Qd2 {[%clk 0:02:56]}  Re8 {[%clk 0:03:02]} 9. O-O-O {[%clk 0:02:52]}  d5 {[%clk 0:03:02]} 10. Bb5 {[%clk 0:02:43]}  Bd7 {[%clk 0:03:01]} 11. exd5 {[%clk 0:02:38]}  Nxd4 {[%clk 0:03:01]} 12. Bxd4 {[%clk 0:02:33]}  Bxb5 {[%clk 0:03:01]} 13. Nxb5 {[%clk 0:02:32]}  Qxd5 {[%clk 0:03:01]} 14. Nc3 {[%clk 0:02:21]}  Qa5 {[%clk 0:02:57]} 15. Kb1 {[%clk 0:02:13]}  Rad8 {[%clk 0:02:53]} 16. Qf2 {[%clk 0:02:09]}  a6 {[%clk 0:02:39]} 17. Rhe1 {[%clk 0:01:54]}  Rxe1 {[%clk 0:02:36]} 18. Qxe1 {[%clk 0:01:52]}  Qb4 {[%clk 0:02:12]} 19. a3 {[%clk 0:01:43]}  Qc4 {[%clk 0:02:12]} 20. Bf2 {[%clk 0:01:19]}  Re8 {[%clk 0:02:09]} 21. Qd2 {[%clk 0:01:13]}  Nh5 {[%clk 0:02:01]} 22. Ne4 {[%clk 0:01:04]}  b6 {[%clk 0:01:47]} 23. Qd5 {[%clk 0:00:59]}  Qe2 {[%clk 0:01:30]} 24. Re1 {[%clk 0:00:33]}  Qb5 {[%clk 0:01:16]} 25. Qxb5 {[%clk 0:00:25]}  axb5 {[%clk 0:01:17]} 26. g4 {[%clk 0:00:22]}  f5 {[%clk 0:01:17]} 27. gxh5 {[%clk 0:00:18]}  fxe4 {[%clk 0:01:16]} 28. hxg6 {[%clk 0:00:18]}  hxg6 {[%clk 0:01:15]} 29. Rxe4 {[%clk 0:00:18]}  Rd8 {[%clk 0:01:11]} 30. Bg3 {[%clk 0:00:17]}  Rd1+ {[%clk 0:01:04]} 31. Ka2 {[%clk 0:00:17]}  Rd7 {[%clk 0:01:05]} 32. Kb3 {[%clk 0:00:15]}  Kf7 {[%clk 0:01:05]} 33. c4 {[%clk 0:00:13]}  bxc4+ {[%clk 0:01:04]} 34. Kc2 {[%clk 0:00:14]}  b5 {[%clk 0:01:03]} 35. a4 {[%clk 0:00:13]}  c6 {[%clk 0:01:02]} 36. axb5 {[%clk 0:00:12]}  cxb5 {[%clk 0:01:03]} 37. b3 {[%clk 0:00:11]}  c3 {[%clk 0:01:01]} 38. Re2 {[%clk 0:00:12]}  b4 {[%clk 0:01:00]} 39. Bf2 {[%clk 0:00:11]}  Bf8 {[%clk 0:00:58]} 40. Bg3 {[%clk 0:00:10]}  Rd3 {[%clk 0:00:58]} 41. Re4 {[%clk 0:00:10]}  Rxf3 {[%clk 0:00:57]} 42. Rf4+ {[%clk 0:00:10]}  Rxf4 {[%clk 0:00:57]} 43. Bxf4 {[%clk 0:00:10]}  Ke6 {[%clk 0:00:58]} 44. Be3 {[%clk 0:00:06]}  Kd5 {[%clk 0:00:58]} 45. Kd3 {[%clk 0:00:06]}  Ke5 {[%clk 0:00:56]} 46. Bd4+ {[%clk 0:00:06]}  Kf5 {[%clk 0:00:56]} 47. Bxc3 {[%clk 0:00:06]}  bxc3 {[%clk 0:00:57]} 48. Kxc3 {[%clk 0:00:06]}  Kg4 {[%clk 0:00:57]} 49. b4 {[%clk 0:00:00]}  Kh3 {[%clk 0:00:57]} 0-1


[Site "https://www.chess.com"]

[Event "Titled Tuesday Blitz July 18 Late 2023"]
[White "Grebeniuk, Semen"]
[Black "Rosenberg, Evan S"]
[WhiteFideId "14117509"]
[BlackFideId "2019299"]
[WhiteElo "2570"]
[BlackElo "2412"]
[Result "1-0"]
[Round "3"]
[TimeControl "180+2"]
[Date "2023.07.18"]
[WhiteClock "0:00:18"]
[BlackClock "0:00:00"]
[Board "99"]

1. Nf3 {[%clk 0:03:00]}  d5 {[%clk 0:02:57]} 2. e3 {[%clk 0:03:00]}  c5 {[%clk 0:02:55]} 3. b3 {[%clk 0:03:00]}  f6 {[%clk 0:02:55]} 4. d4 {[%clk 0:03:00]}  Nc6 {[%clk 0:02:44]} 5. Bb2 {[%clk 0:03:00]}  Bg4 {[%clk 0:02:39]} 6. Be2 {[%clk 0:03:00]}  e6 {[%clk 0:02:37]} 7. O-O {[%clk 0:02:59]}  a6 {[%clk 0:02:37]} 8. h3 {[%clk 0:02:55]}  Bh5 {[%clk 0:02:36]} 9. Nbd2 {[%clk 0:02:55]}  Bd6 {[%clk 0:02:35]} 10. c4 {[%clk 0:02:55]}  Nge7 {[%clk 0:02:35]} 11. cxd5 {[%clk 0:02:55]}  exd5 {[%clk 0:02:35]} 12. dxc5 {[%clk 0:02:55]}  Bxc5 {[%clk 0:02:35]} 13. a3 {[%clk 0:02:55]}  O-O {[%clk 0:02:35]} 14. b4 {[%clk 0:02:55]}  Ba7 {[%clk 0:02:35]} 15. Nb3 {[%clk 0:02:56]}  Bf7 {[%clk 0:02:26]} 16. Rc1 {[%clk 0:02:50]}  Rc8 {[%clk 0:02:26]} 17. Qd2 {[%clk 0:02:46]}  Re8 {[%clk 0:02:26]} 18. Rfd1 {[%clk 0:02:46]}  Nf5 {[%clk 0:02:25]} 19. Nc5 {[%clk 0:02:43]}  Qe7 {[%clk 0:02:13]} 20. Bd3 {[%clk 0:02:36]}  Nd6 {[%clk 0:02:09]} 21. Nd4 {[%clk 0:02:30]}  Ne5 {[%clk 0:01:56]} 22. Nf5 {[%clk 0:02:24]}  Nxf5 {[%clk 0:01:56]} 23. Bxf5 {[%clk 0:02:25]}  Rcd8 {[%clk 0:01:57]} 24. Bd3 {[%clk 0:02:18]}  Nc4 {[%clk 0:01:51]} 25. Bxc4 {[%clk 0:02:13]}  dxc4 {[%clk 0:01:51]} 26. Bd4 {[%clk 0:02:12]}  Bb8 {[%clk 0:01:43]} 27. Qe2 {[%clk 0:02:08]}  Qc7 {[%clk 0:01:31]} 28. f4 {[%clk 0:01:58]}  Qxf4 {[%clk 0:01:28]} 29. exf4 {[%clk 0:01:47]}  Rxe2 {[%clk 0:01:28]} 30. Nxb7 {[%clk 0:01:48]}  Rde8 {[%clk 0:01:06]} 31. Bf2 {[%clk 0:01:02]}  Bxf4 {[%clk 0:01:02]} 32. Nd6 {[%clk 0:01:02]}  Bxc1 {[%clk 0:00:43]} 33. Nxe8 {[%clk 0:01:02]}  Bxa3 {[%clk 0:00:32]} 34. Nc7 {[%clk 0:00:58]}  Bxb4 {[%clk 0:00:26]} 35. Rd8+ {[%clk 0:00:56]}  Bf8 {[%clk 0:00:25]} 36. Bc5 {[%clk 0:00:55]}  g6 {[%clk 0:00:17]} 37. Bxf8 {[%clk 0:00:54]}  h5 {[%clk 0:00:16]} 38. Nxa6 {[%clk 0:00:45]}  Kh7 {[%clk 0:00:15]} 39. Bb4 {[%clk 0:00:40]}  Rb2 {[%clk 0:00:11]} 40. Bc3 {[%clk 0:00:38]}  Rb1+ {[%clk 0:00:11]} 41. Kh2 {[%clk 0:00:38]}  Kg7 {[%clk 0:00:12]} 42. Rd6 {[%clk 0:00:38]}  Rf1 {[%clk 0:00:12]} 43. Nc5 {[%clk 0:00:35]}  g5 {[%clk 0:00:12]} 44. Nd7 {[%clk 0:00:35]}  g4 {[%clk 0:00:12]} 45. hxg4 {[%clk 0:00:33]}  hxg4 {[%clk 0:00:12]} 46. Nxf6 {[%clk 0:00:33]}  Kf8 {[%clk 0:00:10]} 47. Nxg4 {[%clk 0:00:33]}  Ke7 {[%clk 0:00:10]} 48. Rb6 {[%clk 0:00:28]}  Rc1 {[%clk 0:00:10]} 49. Bf6+ {[%clk 0:00:26]}  Kd7 {[%clk 0:00:10]} 50. Ne5+ {[%clk 0:00:26]}  Kc7 {[%clk 0:00:11]} 51. Rc6+ {[%clk 0:00:27]}  Kb7 {[%clk 0:00:11]} 52. Rc5 {[%clk 0:00:25]}  Be6 {[%clk 0:00:11]} 53. Nf3 {[%clk 0:00:18]}  Kb6 {[%clk 0:00:10]} 54. Bd4 {[%clk 0:00:19]}  Kb7 {[%clk 0:00:10]} 55. Be3 {[%clk 0:00:19]}  Bd7 {[%clk 0:00:00]} 56. Bxc1 {[%clk 0:00:18]} 1-0


[Site "https://www.chess.com"]

[Event "Titled Tuesday Blitz July 18 Late 2023"]
[White "Al Mukhaini, Shima"]
[Black "Ambartsumova, Karina"]
[WhiteFideId "22005854"]
[BlackFideId "4166299"]
[WhiteElo "2410"]
[BlackElo "2570"]
[Result "0-1"]
[Round "3"]
[TimeControl "180+2"]
[Date "2023.07.18"]
[WhiteClock "0:02:21"]
[BlackClock "0:01:49"]
[Board "100"]

1. b3 {[%clk 0:03:00]}  e5 {[%clk 0:02:59]} 2. Bb2 {[%clk 0:03:01]}  Nc6 {[%clk 0:02:59]} 3. e3 {[%clk 0:03:01]}  g6 {[%clk 0:02:59]} 4. Bb5 {[%clk 0:03:00]}  Bg7 {[%clk 0:02:59]} 5. d4 {[%clk 0:03:00]}  Nge7 {[%clk 0:02:42]} 6. Nf3 {[%clk 0:02:58]}  d6 {[%clk 0:02:34]} 7. d5 {[%clk 0:02:53]}  a6 {[%clk 0:02:34]} 8. Be2 {[%clk 0:02:50]}  Nb8 {[%clk 0:02:33]} 9. c4 {[%clk 0:02:50]}  O-O {[%clk 0:02:33]} 10. O-O {[%clk 0:02:49]}  Nd7 {[%clk 0:02:32]} 11. e4 {[%clk 0:02:46]}  f5 {[%clk 0:02:26]} 12. Ng5 {[%clk 0:02:41]}  Nf6 {[%clk 0:02:23]} 13. f3 {[%clk 0:02:39]}  h6 {[%clk 0:02:15]} 14. Ne6 {[%clk 0:02:39]}  Bxe6 {[%clk 0:02:15]} 15. dxe6 {[%clk 0:02:39]}  Qc8 {[%clk 0:02:16]} 16. Nc3 {[%clk 0:02:39]}  Qxe6 {[%clk 0:02:14]} 17. Nd5 {[%clk 0:02:39]}  Rac8 {[%clk 0:02:11]} 18. c5 {[%clk 0:02:39]}  Nexd5 {[%clk 0:01:56]} 19. Bc4 {[%clk 0:02:38]}  c6 {[%clk 0:01:54]} 20. cxd6 {[%clk 0:02:37]}  Qxd6 {[%clk 0:01:51]} 21. Re1 {[%clk 0:02:32]}  Rfe8 {[%clk 0:01:51]} 22. Qd2 {[%clk 0:02:26]}  Kh7 {[%clk 0:01:50]} 23. Rad1 {[%clk 0:02:21]}  Qc5+ {[%clk 0:01:49]} 0-1


[Site "https://www.chess.com"]

[Event "Titled Tuesday Blitz July 18 Late 2023"]
[White "Manukyan, Artyom"]
[Black "Luong Phuong Hanh"]
[WhiteFideId "13305786"]
[BlackFideId "12401013"]
[WhiteElo "2567"]
[BlackElo "2404"]
[Result "1-0"]
[Round "3"]
[TimeControl "180+2"]
[Date "2023.07.18"]
[WhiteClock "0:00:06"]
[BlackClock "0:00:00"]
[Board "102"]

1. e4 {[%clk 0:03:00]}  c5 {[%clk 0:02:57]} 2. Nc3 {[%clk 0:02:59]}  Nc6 {[%clk 0:02:56]} 3. g3 {[%clk 0:02:59]}  g6 {[%clk 0:02:56]} 4. Bg2 {[%clk 0:03:00]}  Bg7 {[%clk 0:02:56]} 5. d3 {[%clk 0:03:01]}  d6 {[%clk 0:02:57]} 6. Be3 {[%clk 0:03:01]}  Nf6 {[%clk 0:02:57]} 7. h3 {[%clk 0:03:01]}  O-O {[%clk 0:02:57]} 8. Qd2 {[%clk 0:03:02]}  Nd4 {[%clk 0:02:57]} 9. Nge2 {[%clk 0:02:59]}  e5 {[%clk 0:02:57]} 10. f4 {[%clk 0:02:54]}  Nh5 {[%clk 0:02:43]} 11. O-O {[%clk 0:02:52]}  Nxe2+ {[%clk 0:02:42]} 12. Nxe2 {[%clk 0:02:50]}  exf4 {[%clk 0:02:42]} 13. gxf4 {[%clk 0:02:47]}  Rb8 {[%clk 0:02:37]} 14. f5 {[%clk 0:02:46]}  b5 {[%clk 0:02:33]} 15. c3 {[%clk 0:02:42]}  b4 {[%clk 0:02:32]} 16. c4 {[%clk 0:02:42]}  b3 {[%clk 0:02:08]} 17. a3 {[%clk 0:02:38]}  Be5 {[%clk 0:02:04]} 18. d4 {[%clk 0:02:36]}  cxd4 {[%clk 0:02:03]} 19. Bxd4 {[%clk 0:02:37]}  Ba6 {[%clk 0:01:52]} 20. Rac1 {[%clk 0:02:32]}  Qh4 {[%clk 0:01:46]} 21. Bxe5 {[%clk 0:02:14]}  dxe5 {[%clk 0:01:46]} 22. Qd6 {[%clk 0:02:15]}  Rbd8 {[%clk 0:01:18]} 23. Qxa6 {[%clk 0:02:12]}  Rd2 {[%clk 0:01:18]} 24. c5 {[%clk 0:02:09]}  Ng3 {[%clk 0:01:18]} 25. Rf2 {[%clk 0:01:58]}  Qg5 {[%clk 0:01:08]} 26. Rc3 {[%clk 0:01:23]}  Nxe4 {[%clk 0:00:53]} 27. h4 {[%clk 0:00:52]}  Qg4 {[%clk 0:00:32]} 28. Rd3 {[%clk 0:00:17]}  Rxe2 {[%clk 0:00:15]} 29. Rxe2 {[%clk 0:00:09]}  Qxe2 {[%clk 0:00:16]} 30. Qc4 {[%clk 0:00:04]}  Qe1+ {[%clk 0:00:13]} 31. Kh2 {[%clk 0:00:03]}  Qxh4+ {[%clk 0:00:13]} 32. Kg1 {[%clk 0:00:03]}  Qe1+ {[%clk 0:00:13]} 33. Kh2 {[%clk 0:00:04]}  Nf2 {[%clk 0:00:08]} 34. Rd7 {[%clk 0:00:02]}  h5 {[%clk 0:00:05]} 35. fxg6 {[%clk 0:00:01]}  Ng4+ {[%clk 0:00:05]} 36. Kh3 {[%clk 0:00:01]}  Qe3+ {[%clk 0:00:05]} 37. Kh4 {[%clk 0:00:01]}  Qf2+ {[%clk 0:00:05]} 38. Kxh5 {[%clk 0:00:01]}  Qf5+ {[%clk 0:00:06]} 39. Kh4 {[%clk 0:00:02]}  Qxg6 {[%clk 0:00:04]} 40. Qxg4 {[%clk 0:00:02]}  Kg7 {[%clk 0:00:03]} 41. Qxg6+ {[%clk 0:00:02]}  Kxg6 {[%clk 0:00:04]} 42. Kg3 {[%clk 0:00:02]}  f5 {[%clk 0:00:03]} 43. Bf3 {[%clk 0:00:03]}  Kg5 {[%clk 0:00:03]} 44. Rd6 {[%clk 0:00:04]}  e4 {[%clk 0:00:03]} 45. Be2 {[%clk 0:00:04]}  f4+ {[%clk 0:00:04]} 46. Kf2 {[%clk 0:00:04]}  Rh8 {[%clk 0:00:04]} 47. Rd5+ {[%clk 0:00:05]}  Kf6 {[%clk 0:00:03]} 48. c6 {[%clk 0:00:05]}  Rh2+ {[%clk 0:00:04]} 49. Ke1 {[%clk 0:00:05]}  f3 {[%clk 0:00:02]} 50. Bd1 {[%clk 0:00:06]}  Rh1+ {[%clk 0:00:01]} 51. Kd2 {[%clk 0:00:06]}  f2 {[%clk 0:00:00]} 52. Be2 {[%clk 0:00:06]} 1-0


[Site "https://www.chess.com"]

[Event "Titled Tuesday Blitz July 18 Late 2023"]
[White "Willy, Stephen"]
[Black "Petesch, Gabriel"]
[WhiteFideId "30981468"]
[BlackFideId "2032465"]
[WhiteElo "2388"]
[BlackElo "2554"]
[Result "1/2-1/2"]
[Round "3"]
[TimeControl "180+2"]
[Date "2023.07.18"]
[WhiteClock "0:00:08"]
[BlackClock "0:00:07"]
[Board "106"]

1. e4 {[%clk 0:03:00]}  c6 {[%clk 0:02:58]} 2. d4 {[%clk 0:02:58]}  d5 {[%clk 0:02:54]} 3. f3 {[%clk 0:02:56]}  dxe4 {[%clk 0:02:52]} 4. fxe4 {[%clk 0:02:57]}  e5 {[%clk 0:02:52]} 5. Nf3 {[%clk 0:02:57]}  exd4 {[%clk 0:02:52]} 6. Bc4 {[%clk 0:02:57]}  Be7 {[%clk 0:02:04]} 7. O-O {[%clk 0:02:51]}  Nf6 {[%clk 0:02:01]} 8. e5 {[%clk 0:02:49]}  Nd5 {[%clk 0:01:59]} 9. Qxd4 {[%clk 0:02:47]}  Be6 {[%clk 0:01:35]} 10. Nc3 {[%clk 0:02:45]}  Nd7 {[%clk 0:01:34]} 11. Ne4 {[%clk 0:02:39]}  Qb6 {[%clk 0:01:29]} 12. c3 {[%clk 0:02:23]}  Nxc3 {[%clk 0:01:05]} 13. Qxb6 {[%clk 0:02:04]}  Nxb6 {[%clk 0:01:05]} 14. Bxe6 {[%clk 0:01:57]}  Nxe4 {[%clk 0:00:56]} 15. Bxf7+ {[%clk 0:01:53]}  Kxf7 {[%clk 0:00:54]} 16. Ng5+ {[%clk 0:01:53]}  Kg6 {[%clk 0:00:55]} 17. Nxe4 {[%clk 0:01:53]}  Rad8 {[%clk 0:00:45]} 18. Bd2 {[%clk 0:01:43]}  Rd4 {[%clk 0:00:38]} 19. Rae1 {[%clk 0:01:42]}  Nd5 {[%clk 0:00:32]} 20. Rf3 {[%clk 0:01:32]}  h6 {[%clk 0:00:29]} 21. Bc1 {[%clk 0:01:11]}  Re8 {[%clk 0:00:28]} 22. Ng3 {[%clk 0:01:02]}  Bc5 {[%clk 0:00:22]} 23. Kh1 {[%clk 0:01:01]}  Rc4 {[%clk 0:00:20]} 24. Nf5 {[%clk 0:00:28]}  Rxe5 {[%clk 0:00:17]} 25. Ref1 {[%clk 0:00:20]}  Rxc1 {[%clk 0:00:09]} 26. Rxc1 {[%clk 0:00:17]}  Bb6 {[%clk 0:00:04]} 27. Rcf1 {[%clk 0:00:13]}  Kh7 {[%clk 0:00:04]} 28. h4 {[%clk 0:00:13]}  Nf6 {[%clk 0:00:04]} 29. Nxg7 {[%clk 0:00:11]}  Ne4 {[%clk 0:00:02]} 30. Nf5 {[%clk 0:00:07]}  h5 {[%clk 0:00:02]} 31. Ne3 {[%clk 0:00:06]}  Bxe3 {[%clk 0:00:02]} 32. Rxe3 {[%clk 0:00:06]}  Nf2+ {[%clk 0:00:02]} 33. Rxf2 {[%clk 0:00:06]}  Rxe3 {[%clk 0:00:03]} 34. Rf7+ {[%clk 0:00:07]}  Kg6 {[%clk 0:00:03]} 35. Rxb7 {[%clk 0:00:08]}  a5 {[%clk 0:00:03]} 36. Rb6 {[%clk 0:00:07]}  Re2 {[%clk 0:00:02]} 37. Rxc6+ {[%clk 0:00:07]}  Kf5 {[%clk 0:00:03]} 38. Rc5+ {[%clk 0:00:08]}  Kg4 {[%clk 0:00:04]} 39. Rg5+ {[%clk 0:00:08]}  Kxh4 {[%clk 0:00:04]} 40. Rxa5 {[%clk 0:00:08]}  Rxb2 {[%clk 0:00:04]} 41. Kh2 {[%clk 0:00:08]}  Kg4 {[%clk 0:00:05]} 42. Ra4+ {[%clk 0:00:08]}  Kg5 {[%clk 0:00:05]} 43. Kh3 {[%clk 0:00:08]}  Rb1 {[%clk 0:00:05]} 44. g3 {[%clk 0:00:07]}  Rh1+ {[%clk 0:00:05]} 45. Kg2 {[%clk 0:00:08]}  Ra1 {[%clk 0:00:06]} 46. Kf3 {[%clk 0:00:07]}  Rf1+ {[%clk 0:00:06]} 47. Kg2 {[%clk 0:00:08]}  Ra1 {[%clk 0:00:07]} 48. Ra5+ {[%clk 0:00:07]}  Kg4 {[%clk 0:00:07]} 49. Ra4+ {[%clk 0:00:08]}  Kg5 {[%clk 0:00:07]} 1/2-1/2


[Site "https://www.chess.com"]